fUSD/lending_fUSD_20240714
["ID","MTS","AMOUNT","RATE_DAILY","PERIOD"]
[331975956,1720915231224,150.0,0.00022934,120]
[331975963,1720915350796,150.0,0.00023144,120]
[331975964,1720915379776,-974.29,9.433e-05,2]
[331975965,1720915379797,-274.69089237,0.00010125,2]
[331975967,1720915394917,-818.18,0.00010225,2]
[331975968,1720915394939,-1000.0,0.0001027,2]
[331975969,1720915411299,-8093.47,0.00010311,2]
[331975970,1720915425476,-181.64,0.00010349,2]
[331975971,1720915425496,-2289.57,0.00010399,2]
[331975972,1720915425516,-250.0,0.00010435,2]
[331975973,1720915425537,-500.0,0.00010464,2]
[331975974,1720915425560,-2058.16,0.00010492,2]
[331975975,1720915437317,-672.4,0.00010542,2]
[331975976,1720915437339,-150.0,0.0001069,2]
[331975977,1720915437360,-357.04767182,0.00010691,2]
[331975978,1720915437382,-308.61050773,0.00010691,2]
[331975979,1720915437403,-155.29000583,0.00010691,2]
[331975980,1720915437424,-155.0,0.00010691,2]
[331975981,1720915437444,-155.08378114,0.00010691,2]
[331975982,1720915437463,-1892.85781427,0.00010691,2]
[331975983,1720915437485,-364.77165495,0.00010691,2]
[331975984,1720915437505,-957.97321156,0.00010691,2]
[331975985,1720915437526,-490.9080731,0.00010691,2]
[331975986,1720915437547,-2292.60824284,0.00010691,2]
[331975987,1720915437568,-2038.59286519,0.00010691,2]
[331975988,1720915437588,-306.83572927,0.00010691,2]
[331975989,1720915437607,-224.23358504,0.00010691,2]
[331975990,1720915437630,-244.95389257,0.00010691,2]
[331975991,1720915437651,-261.3858728,0.00010691,2]
[331975992,1720915437672,-165.77392717,0.00010691,2]
[331975993,1720915441934,152.22835817,0.0001059,2]
[331975994,1720915449926,-152.22835817,0.00010727,2]
[331975995,1720915449949,-3932.79,0.00010959,2]
[331975996,1720915449971,-150.0,0.00010959,2]
[331975997,1720915449993,-300.0,0.00010989,2]
[331975998,1720915450015,-1757.85703762,0.0001099,2]
[331975999,1720915450036,-3000.0,0.0001099,2]
[331976000,1720915451970,152.22835817,0.00010863,2]
[331976002,1720915466573,-5639.34611205,0.0001099,2]
[331976003,1720915467419,925.57,9.427e-05,2]
[331976004,1720915483588,-1000.0,0.00011,2]
[331976005,1720915483608,-20199.9903,0.00011,2]
[331976006,1720915483628,-152.22835817,0.00011,2]
[331976007,1720915492845,-500.0,0.00011011,2]
[331976008,1720915492866,-500.0,0.00011012,2]
[331976009,1720915492890,-500.0,0.00011012,2]
[331976010,1720915492910,-500.0,0.00011012,2]
[331976011,1720915492930,-500.0,0.00011012,2]
[331976012,1720915492952,-155.0,0.00011098,2]
[331976013,1720915492972,-1359.39891004,0.00011098,2]
[331976014,1720915492992,-1273.10566718,0.00011098,2]
[331976015,1720915493012,-1198.6203865,0.00011098,2]
[331976016,1720915493032,-722.09432961,0.00011098,2]
[331976017,1720915493052,-1114.34773166,0.00011098,2]
[331976018,1720915493071,-752.28753196,0.00011098,2]
[331976019,1720915493091,-529.36820483,0.00011098,2]
[331976020,1720915493110,-155.31953925,0.00011098,2]
[331976021,1720915493130,-599.29525083,0.00011098,2]
[331976022,1720915493149,-379.45941589,0.00011098,2]
[331976023,1720915493169,-235.78185267,0.00011098,2]
[331976024,1720915493188,-227.34202992,0.00011098,2]
[331976025,1720915493209,-280.00420114,0.00011098,2]
[331976026,1720915493233,-358.8214898,0.00011098,2]
[331976027,1720915493252,-328.66315645,0.00011098,2]
[331976028,1720915493272,-439.46757063,0.00011098,2]
[331976029,1720915493292,-155.0,0.00011098,2]
[331976030,1720915493313,-155.0,0.00011098,2]
[331976031,1720915503888,1000.0,0.00011,2]
[331976032,1720915520108,545.3628559,0.00011,2]
[331976033,1720915532246,150.0,0.00022751,120]
[331976034,1720915543205,500.0,0.00011012,2]
[331976035,1720915548799,-500.0,0.00011012,2]
[331976036,1720915548822,-300.0,0.00011099,2]
[331976037,1720915548844,-9200.0,0.000111,2]
[331976038,1720915571326,-500.0,0.00011012,2]
[331976039,1720915571349,-9500.0,0.000111,2]
[331976040,1720915573804,-10000.0,0.000111,2]
[331976041,1720915576410,-10000.0,0.000111,2]
[331976042,1720915578676,-10000.0,0.000111,2]
[331976043,1720915580536,-10000.0,0.000111,2]
[331976044,1720915582925,-10000.0,0.000111,2]
[331976054,1720915584843,-500.0,0.00011012,2]
[331976055,1720915584866,-9500.0,0.000111,2]
[331976058,1720915586267,-10000.0,0.000111,2]
[331976059,1720915587613,-10000.0,0.000111,2]
[331976060,1720915589760,-10000.0,0.000111,2]
[331976061,1720915591733,-10000.0,0.000111,2]
[331976062,1720915593504,-10000.0,0.000111,2]
[331976063,1720915594931,-10000.0,0.000111,2]
[331976064,1720915596632,-10000.0,0.000111,2]
[331976065,1720915597930,-10000.0,0.000111,2]
[331976066,1720915599084,-10000.0,0.000111,2]
[331976070,1720915632942,-369.14925316,0.00011098,2]
[331976071,1720915632964,-3357.85074684,0.000111,2]
[331976107,1720915650803,150.0,0.0002326,120]
[331976108,1720915710749,150.0,0.00024799,120]
[331976132,1720915831804,-200.0,0.00010379,2]
[331976133,1720915831816,-336.45592939,0.00010712,2]
[331976134,1720915831858,-593.11822,0.00010712,2]
[331976135,1720915832018,-166.15195346,0.00010712,2]
[331976136,1720915832027,-119.15420752,0.00010834,2]
[331976141,1720915837868,-30.84579248,0.00010834,2]
[331976142,1720915837878,-150.0,0.00010837,2]
[331976143,1720915837891,-150.0,0.00010857,2]
[331976144,1720915837902,-150.0,0.00010859,2]
[331976145,1720915837911,-159.35375151,0.00010886,2]
[331976146,1720915837921,-150.0,0.00010913,2]
[331976147,1720915837930,-150.0,0.00010922,2]
[331976148,1720915837940,-150.0,0.00010929,2]
[331976149,1720915837949,-150.0,0.00010931,2]
[331976150,1720915837959,-150.0,0.00010946,2]
[331976151,1720915837968,-150.0,0.00010966,2]
[331976152,1720915837977,-150.0,0.00010988,2]
[331976153,1720915837986,-352.7831,0.0001099,2]
[331976154,1720915837995,-300.0,0.00010999,2]
[331976155,1720915838008,-2500.0,0.00011,2]
[331976156,1720915838017,-1000.0,0.00011,2]
[331976157,1720915838026,-150.0,0.00011021,2]
[331976158,1720915838035,-292.87772794,0.00011098,2]
[331976159,1720915838044,-899.56909436,0.000111,2]
[331976160,1720915838074,-37486.45776575,0.000111,2]
[331976161,1720915838163,-8559.29733584,0.000111,2]
[331976323,1720915839876,-1092.9533,0.00010734,2]
[331976326,1720915839889,-883.68905318,0.000111,2]
[331976328,1720915839902,-991.47169921,0.000111,2]
[331976330,1720915839914,-259.3307522,0.000111,2]
[331976559,1720915842222,-760.74789201,0.000111,2]
[331976560,1720915842233,-59457.42823973,0.000111,2]
[331976705,1720915843576,-2461.58659393,0.000111,2]
[331976706,1720915843587,-5967.50913654,0.000111,2]
[331976709,1720915843628,-3698.49104601,0.000111,2]
[331976719,1720915843711,-259.5899995,0.000111,2]
[331976723,1720915843745,-2361.17265164,0.000111,2]
[331976754,1720915844424,-14886.63927411,0.000111,2]
[331976755,1720915844435,-315.98837151,0.000111,2]
[331976890,1720915845912,-365.20702064,0.000111,2]
[331976902,1720915845966,-956.45,0.000111,2]
[331976913,1720915846022,-15485.0000003,0.000111,2]
[331976924,1720915846083,-3070.60000002,0.000111,2]
[331976932,1720915846132,-584.74,0.000111,2]
[331977712,1720915891357,150.0,0.00022163,120]
[331977738,1720916235499,150.0,8.219e-05,2]
[331977739,1720916235524,150.0,8.219e-05,2]
[331977740,1720916235551,150.0,8.219e-05,2]
[331977741,1720916235584,150.0,8.219e-05,2]
[331977742,1720916235609,150.0,8.219e-05,2]
[331977743,1720916235634,149.56,8.219e-05,2]
[331977744,1720916493421,150.0,8.219e-05,2]
[331977747,1720916774748,150.0,8.219e-05,2]
[331977748,1720916774769,150.0,8.219e-05,2]
[331977749,1720916774790,150.0,8.219e-05,2]
[331977750,1720916774812,150.0,8.219e-05,2]
[331977751,1720916774833,150.0,8.219e-05,2]
[331977752,1720916774856,150.0,8.219e-05,2]
[331977753,1720916774877,12.23,8.219e-05,2]
[331977836,1720917032741,-1240.17343979,9.964e-05,2]
[331977837,1720917032751,-250.0,9.964e-05,2]
[331977838,1720917032760,-181.64,9.968e-05,2]
[331977839,1720917032770,-1000.0,9.973e-05,2]
[331977840,1720917032779,-250.0,9.976e-05,2]
[331977841,1720917032788,-163.68,0.00010029,2]
[331977842,1720917032797,-912.23,0.00010474,2]
[331977843,1720917032806,-300.0,0.00010792,2]
[331977844,1720917032815,-424.66,0.000108,2]
[331977845,1720917032824,-620.76,0.000108,2]
[331977846,1720917032834,-150.0,0.00010815,2]
[331977847,1720917032842,-150.0,0.00010822,2]
[331977848,1720917032851,-150.0,0.00010843,2]
[331977849,1720917032860,-150.0,0.00010847,2]
[331977850,1720917032869,-300.0,0.00010853,2]
[331977851,1720917032878,-205.08287208,0.00010888,2]
[331977852,1720917032888,-150.0,0.00010891,2]
[331977853,1720917032897,-150.0,0.00010899,2]
[331977854,1720917032906,-590.11,0.000109,2]
[331977855,1720917032915,-150.0,0.000109,2]
[331977856,1720917032924,-150.0,0.00010901,2]
[331977857,1720917032933,-150.0,0.00010901,2]
[331977858,1720917032943,-150.0,0.00010902,2]
[331977859,1720917032952,-253.45811787,0.00010905,2]
[331977860,1720917032961,-150.0,0.00010909,2]
[331977861,1720917032970,-300.0,0.0001091,2]
[331977862,1720917032981,-1500.0,0.00010917,2]
[331977863,1720917032990,-150.0,0.00010925,2]
[331977864,1720917032999,-150.0,0.00010932,2]
[331977865,1720917033008,-150.0,0.00010946,2]
[331977866,1720917033017,-150.0,0.00010983,2]
[331977867,1720917033026,-150.0,0.00010987,2]
[331977868,1720917033036,-150.0,0.00010989,2]
[331977869,1720917033045,-150.0,0.00010992,2]
[331977870,1720917033054,-150.0,0.00010995,2]
[331977871,1720917033063,-767.8248,0.00011,2]
[331977872,1720917033073,-1000.0,0.00011,2]
[331977874,1720917033082,-420.9,0.00011,2]
[331977876,1720917033091,-300.0,0.00011001,2]
[331977877,1720917033101,-1500.0,0.00011001,2]
[331977878,1720917033111,-150.0,0.00011004,2]
[331977879,1720917033120,-150.0,0.00011007,2]
[331977880,1720917033130,-243.6939747,0.00011007,2]
[331977881,1720917033139,-150.0,0.00011011,2]
[331977883,1720917033148,-500.0,0.00011011,2]
[331977884,1720917033158,-500.0,0.00011012,2]
[331977885,1720917033167,-500.0,0.00011012,2]
[331977886,1720917033176,-500.0,0.00011012,2]
[331977888,1720917033187,-500.0,0.00011012,2]
[331977890,1720917033199,-150.0,0.00011036,2]
[331977892,1720917033208,-150.0,0.00011042,2]
[331977894,1720917033218,-150.0,0.00011043,2]
[331977895,1720917033227,-150.0,0.00011044,2]
[331977896,1720917033238,-150.0,0.00011045,2]
[331977897,1720917033248,-150.0,0.00011061,2]
[331977898,1720917033257,-150.0,0.00011077,2]
[331977899,1720917033267,-150.0,0.0001109,2]
[331977900,1720917033277,-9278.51126956,0.00011097,2]
[331977901,1720917033295,-1330.45670862,0.00011097,2]
[331977902,1720917033306,-1568.52537946,0.00011097,2]
[331977903,1720917033317,-3266.383531,0.00011097,2]
[331978237,1720917042167,-2003.89431142,0.00011097,2]
[331978374,1720917043076,-13224.22880094,0.00011097,2]
[331978376,1720917043085,-236.96509712,0.00011097,2]
[331978379,1720917043094,-292.13035015,0.00011097,2]
[331978381,1720917043103,-799.8077985,0.00011097,2]
[331978384,1720917043112,-414.71524545,0.00011097,2]
[331978387,1720917043122,-436.55723828,0.00011098,2]
[331978389,1720917043131,-380.7742481,0.00011098,2]
[331978392,1720917043140,-453.84077343,0.00011098,2]
[331978394,1720917043149,-358.8214898,0.00011098,2]
[331978397,1720917043158,-228.31623414,0.00011098,2]
[331978399,1720917043167,-262.79023538,0.00011098,2]
[331978402,1720917043177,-599.29525083,0.00011098,2]
[331978405,1720917043190,-155.0,0.00011098,2]
[331978406,1720917043199,-159.65425677,0.00011098,2]
[331978409,1720917043208,-155.0,0.00011098,2]
[331978411,1720917043218,-305.81510484,0.00011098,2]
[331978414,1720917043228,-1789248.31397501,0.000111,2]
[331978417,1720917043239,-815.44390689,0.000111,2]
[331978501,1720917043856,-1964.81976391,0.000111,2]
[331978503,1720917043867,-5012.05528246,0.000111,2]
[331978709,1720917046389,-1151.79906206,0.000111,2]
[331979311,1720917098187,1800.0,0.00025,60]
[331979319,1720917315523,879.73,8.221e-05,2]
[331979320,1720917348306,150.0,8.221e-05,2]
[331979321,1720917348329,150.0,8.221e-05,2]
[331979322,1720917348353,150.0,8.221e-05,2]
[331979323,1720917348375,150.0,8.221e-05,2]
[331979324,1720917348398,150.0,8.221e-05,2]
[331979325,1720917348420,150.0,8.221e-05,2]
[331979326,1720917348443,106.07293164,8.221e-05,2]
[331979330,1720917755689,-169.02,9.918e-05,2]
[331979331,1720917755713,-476.45,9.932e-05,2]
[331979332,1720917755737,-250.0,9.95e-05,2]
[331979333,1720917755760,-1457.05094507,9.972e-05,2]
[331979334,1720917755783,-1672.07,9.972e-05,2]
[331979335,1720917755807,-1000.0,9.972e-05,2]
[331979336,1720917755833,-300.0,9.999e-05,2]
[331979337,1720917755855,-2722.82,0.0001,2]
[331979338,1720917755879,-250.0,0.00010081,2]
[331979339,1720917755904,-196.93,0.00010139,2]
[331979340,1720917755928,-300.0,0.000103,3]
[331979341,1720917755954,-600.0,0.000104,3]
[331979342,1720917755980,-879.73,0.00010485,2]
[331979343,1720917756006,-900.0,0.000105,3]
[331979344,1720917756033,-1200.0,0.000106,3]
[331979345,1720917756059,-499.99,0.000106,2]
[331979346,1720917756084,-1500.0,0.000107,3]
[331979347,1720917756108,-300.0,0.000108,3]
[331979348,1720917756133,-150.0,0.00010875,2]
[331979349,1720917756156,-1687.86,0.00010888,2]
[331979350,1720917756181,-300.0,0.000109,3]
[331979351,1720917756207,-150.0,0.00010947,2]
[331979352,1720917756230,-420.0,0.00010998,2]
[331979353,1720917756253,-1000.0,0.00011,2]
[331979354,1720917756278,-500.0,0.00011012,2]
[331979355,1720917756302,-500.0,0.00011012,2]
[331979356,1720917756326,-500.0,0.00011012,2]
[331979357,1720917756350,-500.0,0.00011012,2]
[331979358,1720917756374,-300.0,0.00011034,2]
[331979359,1720917756398,-150.0,0.00011052,2]
[331979360,1720917756428,-150.0,0.00011061,2]
[331979361,1720917756451,-300.0,0.00011075,2]
[331979362,1720917756476,-150.0,0.00011087,2]
[331979363,1720917756506,-150.0,0.00011091,2]
[331979364,1720917756529,-300.0,0.00011096,2]
[331979365,1720917756554,-322.9,0.00011096,2]
[331979366,1720917756579,-300.86,0.00011096,2]
[331979367,1720917756602,-626.4917788,0.00011097,2]
[331979368,1720917756625,-30674.92515867,0.00011097,2]
[331979369,1720917756649,-529.36820483,0.00011098,2]
[331979370,1720917756672,-378.31102686,0.00011098,2]
[331979371,1720917756694,-304.05482319,0.00011098,2]
[331979372,1720917756717,-264.83320471,0.00011098,2]
[331979373,1720917756740,-4900.47568631,0.00011098,2]
[331979374,1720917756763,-209.27862367,0.00011098,2]
[331979375,1720917756786,-150.01,0.00011099,2]
[331979376,1720917756808,-2965.57402054,0.00011099,2]
[331979377,1720917756834,-586490.99652735,0.000111,2]
[331979378,1720917832830,150.0,8.731e-05,2]
[331979379,1720917832851,150.0,8.731e-05,2]
[331979380,1720917832873,150.0,8.731e-05,2]
[331979381,1720917832896,150.0,8.731e-05,2]
[331979382,1720917832917,150.0,8.731e-05,2]
[331979383,1720917832938,79.11,8.731e-05,2]
[331979467,1720918232304,-200.0,0.00010308,2]
[331979468,1720918232315,-163.68,0.00010332,2]
[331979469,1720918232325,-707.64430337,0.00010493,2]
[331979470,1720918232337,-829.59060237,0.00010493,2]
[331979471,1720918232805,-1460.3512008,0.00010493,2]
[331979472,1720918232816,-81.89389346,0.00010493,2]
[331979473,1720918232826,-250.0,0.00010544,2]
[331979474,1720918232835,-155.76541947,0.00010583,2]
[331979475,1720918232865,-329.07792703,0.00010583,2]
[331979476,1720918232874,-590.0,0.00010879,2]
[331979477,1720918232884,-150.0,0.00010906,2]
[331979478,1720918232893,-150.0,0.00010988,2]
[331979479,1720918232903,-829.11,0.00010995,2]
[331979480,1720918232913,-150.0,0.00010999,2]
[331979481,1720918232922,-300.0,0.00010999,2]
[331979482,1720918232932,-1400.0,0.00011,2]
[331979483,1720918232945,-312.2862,0.00011,2]
[331979484,1720918232954,-1702.658338,0.00011,2]
[331979485,1720918232963,-3372.8496,0.00011,2]
[331979486,1720918232976,-1000.0,0.00011,2]
[331979487,1720918232986,-500.0,0.00011,2]
[331979489,1720918232995,-183.4622,0.00011,2]
[331979491,1720918233006,-565.9024,0.00011,2]
[331979492,1720918233015,-700.0,0.00011,2]
[331979493,1720918233025,-347.31674194,0.00011,2]
[331979494,1720918233033,-500.0,0.00011012,2]
[331979495,1720918233044,-500.0,0.00011012,2]
[331979496,1720918233053,-500.0,0.00011012,2]
[331979497,1720918233062,-500.0,0.00011012,2]
[331979498,1720918233072,-524.6389317,0.00011097,2]
[331979499,1720918233082,-364.5122265,0.00011097,2]
[331979500,1720918233091,-304.65330378,0.00011098,2]
[331979502,1720918233100,-305.81510484,0.00011098,2]
[331979504,1720918233110,-1000.0,0.00011099,2]
[331979506,1720918233119,-1482.78701027,0.00011099,2]
[331979508,1720918233129,-2859.36764542,0.000111,2]
[331979510,1720918233141,-634.44476877,0.000111,2]
[331979524,1720918239195,-741.39350513,0.00011099,2]
[331979525,1720918239206,-993.78643487,0.000111,2]
[331979593,1720918240352,-21765.21160574,0.000111,2]
[331979612,1720918240525,-17892.9,0.000111,2]
[331979854,1720918243327,-560.56,0.000111,2]
[331979917,1720918244007,-1455.68401201,0.000111,2]
[331979935,1720918244166,-277.36441768,0.00011099,2]
[331980171,1720918246539,-296.91268011,0.00010583,2]
[331980183,1720918246658,-353.504,0.00010583,2]
[331980692,1720918378265,150.0,8.913e-05,2]
[331980693,1720918378286,150.0,8.913e-05,2]
[331980694,1720918378308,150.0,8.913e-05,2]
[331980695,1720918378330,150.0,8.913e-05,2]
[331980696,1720918378352,146.19,8.913e-05,2]
[331980704,1720918485392,197.85190342,8.913e-05,2]
[331980708,1720918941780,197.592395,8.219e-05,2]
[331980709,1720918941803,523.017605,8.219e-05,2]
[331980710,1720919049176,1000.0,0.00016,28]
[331980711,1720919067542,151.07141,0.00025,60]
[331980712,1720919080250,151.07141,0.00025,61]
[331980713,1720919089144,151.07141,0.00025,62]
[331980714,1720919099748,151.07141,0.00025,63]
[331980916,1720919431500,-250.0,9.992e-05,2]
[331980917,1720919431510,-1000.0,9.992e-05,2]
[331980918,1720919431519,-180.25,9.999e-05,2]
[331980919,1720919431528,-747.0,0.00010076,2]
[331980920,1720919431538,-715.41,0.0001024,2]
[331980921,1720919431547,-250.0,0.00010284,2]
[331980922,1720919431556,-196.93,0.00010286,2]
[331980923,1720919431566,-675.63294711,0.0001037,2]
[331980924,1720919431575,-720.61,0.00010475,2]
[331980925,1720919431584,-600.0,0.00010802,2]
[331980926,1720919431594,-1000.0,0.00011,2]
[331980927,1720919431603,-166.25448608,0.00011,2]
[331980928,1720919431612,-231.54449462,0.00011,2]
[331980929,1720919431622,-500.0,0.00011012,2]
[331980930,1720919431631,-565.51433583,0.00011012,2]
[331980931,1720919431642,-500.0,0.00011012,2]
[331980932,1720919431652,-500.0,0.00011012,2]
[331980933,1720919431662,-38292.0,0.00011022,2]
[331980934,1720919431672,-5183.0,0.00011022,2]
[331980935,1720919431681,-5818.0,0.00011022,2]
[331980936,1720919431691,-1666.0,0.00011022,2]
[331980937,1720919431700,-1200.0,0.00011022,2]
[331980938,1720919431710,-626.4917788,0.00011098,2]
[331980939,1720919431720,-305.81510484,0.00011098,2]
[331980940,1720919431730,-304.55324922,0.00011098,2]
[331980941,1720919431741,-464.02908745,0.00011099,2]
[331980942,1720919431750,-537138.08426725,0.000111,2]
[331980943,1720919431774,-1693.66263711,0.000111,2]
[331980944,1720919431795,-54573.82677063,0.000111,2]
[331980945,1720919431807,-999.97,0.000111,2]
[331980946,1720919431822,-886.99,0.000111,2]
[331980958,1720919438392,-1072.0,0.00011022,2]
[331980959,1720919438402,-1718.75,0.000111,2]
[331981095,1720919439992,-849.51799706,0.000111,2]
[331981097,1720919440006,-2351.11336399,0.000111,2]
[331981099,1720919440018,-363.74500005,0.000111,2]
[331981101,1720919440029,-49288.94165201,0.000111,2]
[331981702,1720919445641,-16940.97796025,0.000111,2]
[331981712,1720919445728,-655.45361478,0.000111,2]
[331981722,1720919445952,-5291.0,0.000111,2]
[331982008,1720919586716,150.0,8.669e-05,2]
[331982009,1720919586738,150.0,8.669e-05,2]
[331982010,1720919586762,150.0,8.669e-05,2]
[331982011,1720919586784,150.0,8.669e-05,2]
[331982012,1720919586806,68.98,8.669e-05,2]
[331982014,1720919671431,150.0,8.669e-05,2]
[331982015,1720919671452,150.0,8.669e-05,2]
[331982016,1720919671478,62.12567593,8.669e-05,2]
[331982017,1720919696479,3583.93946966,8.669e-05,2]
[331982018,1720919788423,150.0,8.669e-05,2]
[331982019,1720919788444,23.80046075,8.669e-05,2]
[331982020,1720919818420,173.80046075,8.669e-05,2]
[331982027,1720920118439,150.0,8.361e-05,2]
[331982028,1720920118460,150.0,8.361e-05,2]
[331982029,1720920118481,150.0,8.361e-05,2]
[331982030,1720920118502,150.0,8.361e-05,2]
[331982031,1720920118523,35.53,8.361e-05,2]
[331982095,1720920631808,-429.8742519,9.916e-05,2]
[331982096,1720920631821,-70.1257481,9.916e-05,2]
[331982097,1720920631831,-184.79454792,0.00010134,2]
[331982098,1720920631840,-45.06970398,0.00010134,2]
[331982099,1720920631969,-516.22824976,0.00010134,2]
[331982100,1720920631979,-1000.0,0.00010155,2]
[331982101,1720920631988,-180.25,0.0001019,2]
[331982102,1720920631998,-755.89,0.0001023,2]
[331982103,1720920632008,-250.0,0.00010235,2]
[331982104,1720920632018,-176.35,0.00010315,2]
[331982105,1720920632028,-263.81976689,0.00010508,2]
[331982106,1720920632037,-635.53,0.00010625,2]
[331982107,1720920632047,-6649.0,0.00010663,2]
[331982108,1720920632056,-528.66,0.000108,2]
[331982109,1720920632066,-666.33,0.000108,2]
[331982110,1720920632076,-333.93915335,0.000108,2]
[331982111,1720920632088,-376.07084665,0.000108,2]
[331982112,1720920632098,-93.412211,0.000108,2]
[331982113,1720920632110,-58.317789,0.000108,2]
[331982114,1720920632119,-150.0,0.000108,2]
[331982115,1720920632128,-300.0,0.000108,2]
[331982116,1720920632138,-343.9663675,0.000108,2]
[331982117,1720920632149,-494.6536325,0.000108,2]
[331982118,1720920632159,-2817.06466371,0.0001098,2]
[331982119,1720920632168,-150.99,0.0001099,2]
[331982120,1720920632177,-3103.32779973,0.0001099,2]
[331982121,1720920632189,-1314.66220027,0.0001099,2]
[331982122,1720920632199,-346.74,0.0001099,2]
[331982123,1720920632208,-4226.74179452,0.0001099,2]
[331982124,1720920632220,-1289.15820548,0.0001099,2]
[331982125,1720920632230,-8127.90948028,0.0001099,2]
[331982126,1720920632241,-21872.08051972,0.0001099,2]
[331982127,1720920632250,-1543.5192,0.00011,2]
[331982128,1720920632259,-47883.5994,0.00011,2]
[331982129,1720920632269,-1000.0,0.00011,2]
[331982130,1720920632281,-1548.9202,0.00011,2]
[331982132,1720920632293,-165.73977734,0.00011,2]
[331982134,1720920632302,-332.9724,0.00011,2]
[331982136,1720920632311,-37079.7673651,0.00011,2]
[331982137,1720920632324,-59586.1918349,0.00011,2]
[331982138,1720920632333,-14703.282,0.00011,2]
[331982139,1720920632343,-250.60377002,0.00011,2]
[331982140,1720920632353,-500.0,0.00011012,2]
[331982141,1720920632365,-500.0,0.00011012,2]
[331982142,1720920632376,-500.0,0.00011012,2]
[331982143,1720920632386,-500.0,0.00011012,2]
[331982144,1720920632396,-179.740557,0.0001109,2]
[331982145,1720920632405,-4151.1602877,0.00011093,2]
[331982146,1720920632415,-305.87724342,0.00011098,2]
[331982147,1720920632424,-622680.37735951,0.000111,2]
[331982148,1720920632453,-789.65,0.000111,2]
[331982149,1720920632465,-441.08533386,0.000111,2]
[331982177,1720920638727,-1158.03918907,0.000109,2]
[331982178,1720920638738,-155.94648637,0.00011,2]
[331982179,1720920638748,-393.01432456,0.000111,2]
[331982180,1720920638792,-1197.6906,0.000111,2]
[331982181,1720920638803,-1466.694531,0.000111,2]
[331982297,1720920640408,-189.52149606,0.00010134,2]
[331982299,1720920640419,-1195.69892213,0.000111,2]
[331982572,1720920643000,-814.63053198,0.000111,2]
[331982582,1720920643156,-3236.89208658,0.000111,2]
[331982656,1720920644130,-336.718,0.000111,2]
[331982670,1720920644260,-302647.02017904,0.000111,2]
[331983084,1720920699795,151.07141,0.00025,67]
[331983090,1720920725244,150.0,8.308e-05,2]
[331983091,1720920725264,0.24,8.308e-05,2]
[331983093,1720920757888,150.0,8.388e-05,2]
[331983094,1720920757911,150.0,8.388e-05,2]
[331983095,1720920757935,150.0,8.388e-05,2]
[331983096,1720920757958,150.0,8.388e-05,2]
[331983097,1720920757982,3.29,8.388e-05,2]
[331983098,1720920798882,150.0,8.308e-05,2]
[331983099,1720920798904,97.22525938,8.308e-05,2]
[331983110,1720921291709,150.0,8.219e-05,2]
[331983111,1720921291888,150.0,8.219e-05,2]
[331983112,1720921291914,150.0,8.219e-05,2]
[331983113,1720921291941,150.0,8.219e-05,2]
[331983114,1720921291964,8.86,8.219e-05,2]
[331983115,1720921373087,150.0,8.219e-05,2]
[331983116,1720921373118,150.0,8.219e-05,2]
[331983117,1720921373153,150.0,8.219e-05,2]
[331983118,1720921373187,150.0,8.219e-05,2]
[331983123,1720921468087,150.0,8.219e-05,2]